bitfinex/quotes_BTCUSD_20241101
["timestamp","ask_amount","ask_price","bid_price","bid_amount"]
[1730493796587,0.45256905,69483.0,69482.0,0.0789]
[1730493797244,0.47415202,69483.0,69482.0,0.0789]
[1730493801158,0.47415202,69483.0,69482.0,0.002]
[1730493801367,0.61260727,69483.0,69482.0,0.002]
[1730493801615,0.50469242,69483.0,69482.0,0.002]
[1730493802958,0.72211008,69483.0,69482.0,0.002]
[1730493803182,0.59261226,69483.0,69482.0,0.002]
[1730493803384,0.72225623,69483.0,69482.0,0.002]
[1730493803814,0.59261226,69483.0,69482.0,0.002]
[1730493804021,0.59261526,69483.0,69482.0,0.002]
[1730493808638,0.59255147,69483.0,69482.0,0.002]
[1730493812782,0.59255147,69483.0,69482.0,0.003642]
[1730493815283,0.59251423,69483.0,69482.0,0.003642]
[1730493816303,0.68043407,69483.0,69482.0,0.003642]
[1730493816535,0.59251423,69483.0,69482.0,0.003642]
[1730493817504,0.78043407,69483.0,69482.0,0.003642]
[1730493817702,0.90999236,69483.0,69482.0,0.003642]
[1730493820491,0.90599236,69483.0,69482.0,0.002642]
[1730493820676,0.90599236,69483.0,69482.0,0.003642]
[1730493820882,0.90599236,69483.0,69482.0,0.002642]
[1730493820883,0.60401665,69483.0,69482.0,0.002642]
[1730493821091,0.90653945,69483.0,69482.0,0.002642]
[1730493821515,0.77702815,69483.0,69482.0,0.003642]
[1730493821728,0.76302815,69483.0,69482.0,0.001642]
[1730493821990,0.77702815,69483.0,69482.0,0.002642]
[1730493822581,0.90653945,69483.0,69482.0,0.002642]
[1730493823054,0.77702815,69483.0,69482.0,0.002642]
[1730493823698,0.79102815,69483.0,69482.0,0.003642]
[1730493826446,0.92049277,69483.0,69482.0,0.003642]
[1730493826563,0.79102815,69483.0,69482.0,0.003642]
[1730493828601,0.92048151,69483.0,69482.0,0.003642]
[1730493829181,1.05895881,69483.0,69482.0,0.003642]
[1730493829642,0.92048151,69483.0,69482.0,0.003642]
[1730493829849,0.70310831,69483.0,69482.0,0.003642]
[1730493832951,0.79102815,69483.0,69482.0,0.003642]
[1730493834383,0.92048151,69483.0,69482.0,0.003642]
[1730493835841,0.79102815,69483.0,69482.0,0.003642]
[1730493836637,0.79080509,69483.0,69482.0,0.003642]
[1730493838623,0.79068285,69483.0,69482.0,0.003642]
[1730493840861,0.79065855,69483.0,69482.0,0.003642]
[1730493845683,0.79065855,69483.0,69475.0,1e-06]
[1730493845684,0.143928,69479.0,69475.0,1e-06]
[1730493845893,0.575697,69481.0,69475.0,1e-06]
[1730493845894,0.55822893,69476.0,69475.0,1e-06]
[1730493846093,0.76185155,69476.0,69475.0,1e-06]
[1730493846318,0.82099037,69476.0,69475.0,1e-06]
[1730493846434,0.96670153,69476.0,69475.0,1e-06]
[1730493846635,0.82099037,69476.0,69475.0,1e-06]
[1730493846851,0.73307053,69476.0,69475.0,0.001001]
[1730493847058,0.67393171,69476.0,69475.0,0.001001]
[1730493847304,0.49001187,69476.0,69475.0,0.175401]
[1730493847517,0.49001187,69476.0,69475.0,0.174401]
[1730493848026,0.50401187,69476.0,69475.0,0.175401]
[1730493848473,0.59789816,69476.0,69475.0,0.174401]
[1730493848716,0.32736997,69476.0,69475.0,0.173401]
[1730493848885,0.49920948,69476.0,69475.0,0.174401]
[1730493849129,0.48523532,69476.0,69475.0,0.173401]
[1730493849339,0.57154936,69476.0,69475.0,0.173401]
[1730493849539,0.58554936,69476.0,69475.0,0.174401]
[1730493849742,0.51323532,69476.0,69475.0,0.174401]
[1730493849998,0.35536997,69476.0,69475.0,0.174401]
[1730493850195,0.34136997,69476.0,69475.0,0.174401]
[1730493850413,0.40610712,69476.0,69475.0,0.174401]
[1730493850616,0.42010712,69476.0,69475.0,0.174401]
[1730493850808,0.35536997,69476.0,69475.0,0.174401]
[1730493852151,0.51332319,69476.0,69475.0,0.174401]
[1730493853717,0.51334112,69476.0,69475.0,0.174401]
[1730493854732,0.59967087,69476.0,69475.0,0.174401]
[1730493855791,0.59968028,69476.0,69475.0,0.174401]
[1730493856511,0.51334112,69476.0,69475.0,0.174401]
[1730493856720,0.59968435,69476.0,69475.0,0.174401]
[1730493857171,0.51334112,69476.0,69475.0,0.174401]
[1730493857589,0.59968758,69476.0,69475.0,0.174401]
[1730493858002,0.51334112,69476.0,69475.0,0.174401]
[1730493858856,0.59969267,69476.0,69475.0,0.174401]
[1730493859071,0.51334112,69476.0,69475.0,0.174401]
[1730493859500,0.49936612,69476.0,69475.0,0.174401]
[1730493859712,0.58571887,69476.0,69475.0,0.174401]
[1730493859921,0.49936612,69476.0,69475.0,0.174401]
[1730493860680,0.58571887,69476.0,69475.0,0.174401]
[1730493861362,0.58571887,69476.0,69475.0,0.1918411]
[1730493861363,0.23095187,69476.0,69475.0,0.1918411]
[1730493861572,0.22122177,69488.0,69475.0,0.1918411]
[1730493861573,0.04317886,69487.0,69482.0,0.311522]
[1730493861787,0.2164065,69488.0,69482.0,0.39944184]
[1730493862003,0.04317886,69490.0,69482.0,0.52574192]
[1730493862434,0.2172275,69491.0,69482.0,0.52574192]
[1730493862642,0.000821,69491.0,69482.0,0.52574192]
[1730493862872,0.000821,69491.0,69482.0,0.53024513]
[1730493863090,0.000821,69491.0,69490.0,0.143905]
[1730493863297,0.000821,69491.0,69490.0,0.32450814]
[1730493863509,0.000821,69491.0,69490.0,0.320005]
[1730493863747,0.000821,69491.0,69490.0,0.41836118]
[1730493863971,0.000821,69491.0,69490.0,0.27445618]
[1730493864820,0.001821,69491.0,69490.0,0.28645618]
[1730493865312,0.001821,69491.0,69490.0,0.30045618]
[1730493865492,0.000821,69491.0,69490.0,0.27445618]
[1730493865837,0.000821,69491.0,69490.0,0.28845618]
[1730493866240,0.000821,69491.0,69490.0,0.1901]
[1730493866655,0.001821,69491.0,69490.0,0.2041]
[1730493880571,0.001821,69491.0,69490.0,0.348005]
[1730493880762,0.001821,69491.0,69490.0,0.2041]
[1730493881396,0.001821,69491.0,69490.0,0.348005]
[1730493881525,0.001821,69491.0,69490.0,0.2041]
[1730493885058,0.145724,69491.0,69490.0,0.2041]
[1730493887086,0.145724,69491.0,69490.0,0.028]
[1730493891044,0.28417925,69491.0,69490.0,0.028]
[1730493891635,0.28417925,69491.0,69490.0,0.05682]
[1730493891855,0.28417925,69491.0,69490.0,0.028]
[1730493892049,0.28317925,69491.0,69490.0,0.014]
[1730493892413,0.28417925,69491.0,69490.0,0.026]
[1730493892757,0.28317925,69491.0,69490.0,0.014]
[1730493892975,0.13927625,69491.0,69483.0,0.2180485]
[1730493893169,0.28783,69486.0,69483.0,0.2180485]
[1730493893398,0.143918,69484.0,69483.0,0.2180485]
[1730493893623,0.143918,69484.0,69483.0,0.001642]
[1730493893850,0.28237325,69484.0,69483.0,0.001642]
[1730493894891,0.28237325,69484.0,69483.0,0.015642]
[1730493895710,0.28237325,69484.0,69483.0,0.001642]
[1730493896555,0.29637325,69484.0,69483.0,0.002642]
[1730493896904,0.29837325,69484.0,69483.0,0.003642]
[1730493898362,0.29837325,69484.0,69483.0,0.169642]
[1730493899620,0.27741425,69484.0,69483.0,0.169642]
[1730493900267,0.27741425,69484.0,69483.0,0.003642]
[1730493900496,0.41028235,69484.0,69483.0,0.003642]
[1730493900733,0.45331305,69484.0,69483.0,0.003642]
[1730493900935,0.41028235,69484.0,69483.0,0.003642]
[1730493901171,0.36539321,69484.0,69483.0,0.003642]
[1730493901387,0.62895541,69484.0,69483.0,0.003642]
[1730493901801,0.58588235,69484.0,69483.0,0.003642]
[1730493902030,0.7504284,69484.0,69483.0,0.003642]
[1730493902231,0.68588235,69484.0,69483.0,0.003642]
[1730493902439,0.9524701,69484.0,69483.0,0.003642]
[1730493902643,0.93281319,69484.0,69483.0,0.003642]
[1730493902852,1.05729049,69484.0,69483.0,0.002642]
[1730493903053,1.07829049,69484.0,69483.0,0.001642]
[1730493903259,0.99037065,69484.0,69483.0,0.001642]
[1730493903466,0.86589335,69484.0,69483.0,0.002642]
[1730493903678,0.85189335,69484.0,69483.0,0.001642]
[1730493904113,0.75497351,69484.0,69483.0,0.002642]
[1730493904316,0.75497351,69484.0,69483.0,0.001642]
[1730493904317,0.67387351,69484.0,69483.0,0.001642]
[1730493904551,0.67387351,69484.0,69483.0,0.002642]
[1730493904757,0.68129335,69484.0,69483.0,0.002642]
[1730493904984,0.68129335,69484.0,69483.0,0.001642]
[1730493905679,0.66811435,69484.0,69483.0,0.001642]
[1730493905913,0.68211435,69484.0,69483.0,0.001642]
[1730493906124,0.69611435,69484.0,69483.0,0.002642]
[1730493906335,0.80376098,69484.0,69483.0,0.002642]
[1730493906548,0.80376098,69484.0,69483.0,0.001642]
[1730493906549,0.77576098,69484.0,69483.0,0.001642]
[1730493906698,0.78976098,69484.0,69483.0,0.002642]
[1730493907122,0.77576098,69484.0,69483.0,0.002642]
[1730493907514,0.78976098,69484.0,69483.0,0.002642]
[1730493908289,0.68211435,69484.0,69483.0,0.002642]
[1730493909691,0.78970936,69484.0,69483.0,0.002642]
[1730493910155,0.68211435,69484.0,69483.0,0.002642]
[1730493910361,0.78969402,69484.0,69483.0,0.002642]
[1730493911241,0.70177418,69484.0,69483.0,0.002642]
[1730493911458,0.37820848,69484.0,69483.0,0.079642]
[1730493911667,0.29023525,69484.0,69483.0,0.079642]
[1730493912510,0.16727625,69484.0,69483.0,0.174242]
[1730493912718,0.31119425,69484.0,69483.0,0.174242]
[1730493915536,0.16727625,69484.0,69483.0,0.174242]
[1730493915753,0.31119425,69484.0,69483.0,0.174242]
[1730493915980,0.028821,69484.0,69483.0,0.174242]
[1730493916441,0.028821,69484.0,69483.0,0.206059]
[1730493916653,0.028256,69484.0,69483.0,0.206059]
[1730493916874,0.028256,69484.0,69483.0,0.174242]
[1730493917095,0.014256,69484.0,69483.0,0.173242]
[1730493917304,0.000256,69484.0,69483.0,0.173242]
[1730493917524,0.005256,69484.0,69483.0,0.317162]
[1730493917746,0.005256,69484.0,69483.0,0.4443141]
[1730493918190,0.012256,69484.0,69483.0,0.4443141]
[1730493918872,0.38254909,69484.0,69483.0,0.078642]
[1730493919095,0.38254909,69484.0,69483.0,0.001642]
[1730493920651,0.29462925,69484.0,69483.0,0.001642]
[1730493921307,0.33949116,69484.0,69483.0,0.001642]
[1730493922349,0.33449116,69484.0,69483.0,0.001642]
[1730493922810,0.34849116,69484.0,69483.0,0.002642]
[1730493923239,0.34149116,69484.0,69483.0,0.002642]
[1730493923457,0.39851061,69484.0,69483.0,0.002642]
[1730493923838,0.35549116,69484.0,69483.0,0.002642]
[1730493924195,0.39851061,69484.0,69483.0,0.002642]
[1730493924803,0.35549116,69484.0,69483.0,0.002642]
[1730493925207,0.39851061,69484.0,69483.0,0.002642]
[1730493927372,0.35549116,69484.0,69483.0,0.002642]
[1730493927947,0.42002034,69484.0,69483.0,0.002642]
[1730493928348,0.51447348,69484.0,69483.0,0.002642]
[1730493928560,0.42009323,69484.0,69483.0,0.002642]
[1730493929420,0.35549116,69484.0,69483.0,0.002642]
[1730493930251,0.60064148,69484.0,69483.0,0.002642]
[1730493930714,0.65297124,69484.0,69483.0,0.002642]
[1730493930931,0.73913206,69484.0,69483.0,0.002642]
[1730493931150,0.65297124,69484.0,69483.0,0.002642]
[1730493931358,0.51449394,69484.0,69483.0,0.002642]
[1730493931994,0.60066286,69484.0,69483.0,0.002642]
[1730493932222,0.42011451,69484.0,69483.0,0.002642]
[1730493933076,0.9001294,69484.0,69483.0,0.002642]
[1730493933309,0.61454498,69484.0,69483.0,0.002642]
[1730493933944,0.60054498,69484.0,69483.0,0.001642]
[1730493934141,0.58654498,69484.0,69483.0,0.001642]
[1730493934345,0.60054498,69484.0,69483.0,0.002642]
[1730493934595,0.61454498,69484.0,69483.0,0.002642]
[1730493934799,0.61458301,69484.0,69483.0,0.002642]
[1730493941456,0.61467656,69484.0,69483.0,0.002642]
[1730493943335,0.75315386,69484.0,69483.0,0.002642]
[1730493944244,0.61467656,69484.0,69483.0,0.002642]
[1730493944453,0.70252462,69484.0,69483.0,0.002642]
[1730493944655,0.70257412,69484.0,69483.0,0.002642]
[1730493946362,0.70257412,69484.0,69483.0,0.083742]
[1730493948672,0.70257404,69484.0,69483.0,0.083742]
[1730493948886,0.70259487,69484.0,69483.0,0.083742]
[1730493951553,0.51474681,69484.0,69483.0,0.083742]
[1730493951778,0.39863655,69484.0,69483.0,0.174742]
[1730493951994,0.42021117,69484.0,69483.0,0.174742]
[1730493952435,0.601062,69484.0,69483.0,0.174742]
[1730493952658,0.42021292,69484.0,69483.0,0.174742]
[1730493953115,0.35549108,69484.0,69483.0,0.174742]
[1730493954038,0.51477266,69484.0,69483.0,0.174742]
[1730493954256,0.35549108,69484.0,69483.0,0.174742]
[1730493954474,0.42021657,69484.0,69483.0,0.174742]
[1730493955341,0.5147826,69484.0,69483.0,0.174742]
[1730493955774,0.35549108,69484.0,69483.0,0.174742]
[1730493956229,0.51478185,69484.0,69483.0,0.174742]
[1730493956679,0.60107971,69484.0,69483.0,0.174742]
[1730493957540,0.51478185,69484.0,69483.0,0.174742]
[1730493957743,0.60107971,69484.0,69483.0,0.174742]
[1730493958565,0.51478185,69484.0,69483.0,0.174742]
[1730493959963,0.60107971,69484.0,69483.0,0.174742]
[1730493960186,0.51478185,69484.0,69483.0,0.174742]
[1730493960745,0.60107971,69484.0,69483.0,0.174742]
[1730493960964,0.51478185,69484.0,69483.0,0.174742]
[1730493961142,0.35549108,69484.0,69483.0,0.174742]
[1730493961386,0.42022809,69484.0,69483.0,0.174742]
[1730493962241,0.42022717,69484.0,69483.0,0.174742]
[1730493962664,0.35549108,69484.0,69483.0,0.174742]
[1730493962888,0.35549108,69484.0,69483.0,0.002642]
[1730493962889,0.51480944,69484.0,69483.0,0.002642]
[1730493963144,0.6026575,69484.0,69483.0,0.002642]
[1730493963636,0.7026575,69484.0,69483.0,0.002642]
[1730493963857,0.61480944,69484.0,69483.0,0.002642]
[1730493964300,0.74433871,69484.0,69483.0,0.002642]
[1730493964517,0.74434004,69484.0,69483.0,0.002642]
[1730493965364,0.61480944,69484.0,69483.0,0.002642]
[1730493965580,0.74434542,69484.0,69483.0,0.002642]
[1730493965762,0.61480944,69484.0,69483.0,0.002642]
[1730493965991,0.61488235,69484.0,69483.0,0.002642]
[1730493967342,0.74442156,69484.0,69483.0,0.002642]
[1730493967759,0.61488235,69484.0,69483.0,0.002642]
[1730493968371,0.74442156,69484.0,69483.0,0.002642]
[1730493968611,0.61488235,69484.0,69483.0,0.002642]
[1730493968862,0.74442195,69484.0,69483.0,0.002642]
[1730493969706,0.61488235,69484.0,69483.0,0.002642]
[1730493971026,0.61488235,69484.0,69483.0,0.175542]
[1730493982477,0.61488235,69484.0,69483.0,0.002642]
[1730493982711,0.70273041,69484.0,69483.0,0.002642]
[1730493984385,0.83226932,69484.0,69483.0,0.002642]
[1730493987004,0.70273041,69484.0,69483.0,0.002642]
[1730493987365,0.61488235,69484.0,69483.0,0.002642]
[1730493987819,0.70273041,69484.0,69483.0,0.002642]
[1730493988054,0.61488235,69484.0,69483.0,0.002642]
[1730493988262,0.70273041,69484.0,69483.0,0.002642]
[1730493988937,0.84120771,69484.0,69483.0,0.002642]
[1730493989165,0.84120771,69484.0,69475.0,1e-06]
[1730493989166,0.41963012,69476.0,69475.0,1e-06]
[1730493989464,0.67449049,69476.0,69475.0,1e-06]
[1730493989890,0.82025226,69476.0,69475.0,1e-06]
[1730493990308,0.87939108,69476.0,69475.0,1e-06]
[1730493990543,0.74762931,69476.0,69475.0,1e-06]
[1730493990759,0.76162931,69476.0,69475.0,1e-06]
[1730493990976,0.73362931,69476.0,69475.0,1e-06]
[1730493991178,0.74762931,69476.0,69475.0,1e-06]
[1730493991616,0.76162931,69476.0,69475.0,1e-06]
[1730493991863,0.74762931,69476.0,69475.0,1e-06]
[1730493992312,0.84947737,69476.0,69475.0,1e-06]
[1730493992543,0.74762931,69476.0,69475.0,1e-06]
[1730493992756,0.76162931,69476.0,69475.0,1e-06]
[1730493992989,0.84947737,69476.0,69475.0,1e-06]
[1730493993234,0.83547737,69476.0,69475.0,1e-06]
[1730493993474,0.82147737,69476.0,69475.0,1e-06]
[1730493993691,0.83530499,69476.0,69475.0,1e-06]
[1730493994367,0.82130499,69476.0,69475.0,1e-06]
[1730493994599,0.84930499,69476.0,69475.0,1e-06]
[1730493995079,1.03830499,69476.0,69475.0,1e-06]
[1730493995530,0.243955,69466.0,69465.0,0.2164065]
[1730493995760,0.67433911,69466.0,69465.0,0.2164065]
[1730493995976,0.1,69465.0,69457.0,0.2164065]
[1730493996206,0.41803946,69461.0,69457.0,0.2164065]
[1730493996430,0.78209654,69461.0,69452.0,0.0764]
[1730493996647,0.67434911,69461.0,69458.0,0.2164065]
[1730493996862,0.67434911,69461.0,69452.0,0.0764]
[1730493997346,0.7960587,69461.0,69452.0,0.0764]
[1730493997574,0.86919752,69461.0,69452.0,0.0764]
[1730493997786,0.73348793,69461.0,69452.0,0.0764]
[1730493998236,0.73348793,69461.0,69449.0,0.3117065]
[1730493998237,0.87233599,69461.0,69449.0,0.3117065]
[1730493998423,0.143988,69450.0,69449.0,0.2164065]
[1730493998679,0.52295352,69450.0,69449.0,0.2164065]
[1730493999123,0.143992,69448.0,69447.0,0.0821]
[1730493999342,0.32730916,69448.0,69447.0,0.0821]
[1730494000457,0.32730916,69448.0,69440.0,0.001642]
[1730494000458,0.144005,69442.0,69441.0,0.0783]
[1730494000683,0.37030831,69442.0,69441.0,0.0783]
[1730494002787,0.38430831,69442.0,69441.0,0.0783]
[1730494003211,0.39830831,69442.0,69441.0,0.0783]
[1730494004014,0.31046025,69442.0,69441.0,0.1687]
[1730494004664,0.6123865,69442.0,69441.0,0.1687]
[1730494004934,0.6123865,69442.0,69440.0,0.001642]
[1730494004935,0.244007,69441.0,69440.0,0.001642]
[1730494005149,0.38246225,69441.0,69440.0,0.001642]
[1730494006673,0.56133102,69441.0,69440.0,0.001642]
[1730494006879,0.63271701,69441.0,69440.0,0.001642]
[1730494007319,0.64671701,69441.0,69440.0,0.001642]
[1730494008099,0.66971701,69441.0,69440.0,0.001642]
[1730494008308,0.68371701,69441.0,69440.0,0.001642]
[1730494012718,0.267017,69436.0,69435.0,0.01396236]
[1730494012881,0.244046,69422.0,69417.0,0.2164065]
[1730494013160,0.38250125,69422.0,69417.0,0.2164065]
[1730494013508,0.38250125,69422.0,69414.0,0.0777]
[1730494014334,0.39650125,69422.0,69414.0,0.0777]
[1730494014536,0.46788724,69422.0,69414.0,0.0777]
[1730494016149,0.41050125,69422.0,69415.0,0.2164065]
[1730494016934,0.41050125,69422.0,69414.0,0.0777]
[1730494020310,0.41050125,69422.0,69415.0,0.2164065]
[1730494020532,0.41050125,69422.0,69421.0,0.10063]
[1730494022828,0.45515711,69422.0,69421.0,0.10063]
[1730494023236,0.45515711,69422.0,69421.0,0.00163]
[1730494024297,0.47815711,69422.0,69421.0,0.00163]
[1730494024556,0.144063,69414.0,69408.0,0.0775]
[1730494024782,0.42717411,69414.0,69408.0,0.0775]
[1730494025230,0.42717411,69414.0,69404.0,0.0966]
[1730494026941,0.44117411,69414.0,69404.0,0.0966]
[1730494027876,0.45517411,69414.0,69404.0,0.0966]
[1730494028094,0.51431293,69414.0,69404.0,0.0966]
[1730494030570,0.69040853,69414.0,69404.0,0.0966]
[1730494031431,0.69040853,69414.0,69310.0,0.07243934]
[1730494031432,0.2768,69413.0,69384.0,0.0245]
[1730494031643,0.3551708,69385.0,69384.0,0.0245]
[1730494031857,0.3321708,69385.0,69384.0,0.0245]
[1730494032064,0.37697352,69385.0,69384.0,0.0245]
[1730494032302,0.3321708,69385.0,69384.0,0.0245]
[1730494032552,0.3321708,69385.0,69370.0,0.00163]
[1730494032553,0.144146,69374.0,69373.0,0.081]
[1730494032774,0.144152,69371.0,69370.0,0.00163]
[1730494033003,0.32741559,69371.0,69370.0,0.00163]
[1730494033437,0.42741559,69371.0,69370.0,0.00163]
[1730494034101,0.45541559,69371.0,69370.0,0.00163]
[1730494034326,0.51455441,69371.0,69370.0,0.00163]
[1730494034972,0.75396091,69371.0,69370.0,0.00163]
[1730494035222,0.53755441,69371.0,69370.0,0.00163]
[1730494035443,0.52355441,69371.0,69370.0,0.00163]
[1730494036075,0.50955441,69371.0,69370.0,0.00163]
[1730494036302,0.52355441,69371.0,69370.0,0.00163]
[1730494036528,0.53755441,69371.0,69370.0,0.00163]
[1730494036759,0.52355441,69371.0,69370.0,0.00163]
[1730494037265,0.53755441,69371.0,69370.0,0.00163]
[1730494039449,0.144175,69360.0,69359.0,0.2164065]
[1730494039771,0.28263025,69360.0,69359.0,0.2164065]
[1730494039981,0.144177,69359.0,69358.0,0.0812]
[1730494040180,0.28263225,69359.0,69358.0,0.0812]
[1730494042000,0.29663225,69359.0,69358.0,0.0812]
[1730494042410,0.31063225,69359.0,69358.0,0.0812]
[1730494043499,0.16645525,69359.0,69358.0,0.0812]
[1730494043712,0.31063225,69359.0,69358.0,0.0812]
[1730494046118,0.16645525,69359.0,69358.0,0.0812]
[1730494046331,0.31063225,69359.0,69358.0,0.0812]
[1730494048060,0.028,69359.0,69358.0,0.0812]
[1730494049029,0.014,69359.0,69358.0,0.08571155]
[1730494049240,0.014,69359.0,69358.0,0.0857115]
[1730494049655,0.014,69359.0,69358.0,0.08571145]
[1730494049873,0.028,69359.0,69358.0,0.08571145]
[1730494050079,0.144167,69364.0,69358.0,0.08571145]
[1730494050252,0.28262225,69364.0,69359.0,0.00451145]
[1730494050478,0.28262225,69364.0,69360.0,0.0775]
[1730494051496,0.13845525,69364.0,69360.0,0.0775]
[1730494051697,0.13845525,69364.0,69362.0,0.11022]
[1730494051899,0.13845525,69364.0,69362.0,0.0814]
[1730494051900,0.14345525,69364.0,69362.0,0.0814]
[1730494052279,0.13845525,69364.0,69362.0,0.0814]
[1730494052489,0.006,69364.0,69362.0,0.0814]
[1730494052691,0.016,69364.0,69362.0,0.0814]
[1730494052890,0.01,69364.0,69363.0,0.24578025]
[1730494053110,0.2164065,69373.0,69363.0,0.24578025]
[1730494053111,0.14415,69372.0,69363.0,0.24578025]
[1730494053389,0.14415,69372.0,69364.0,0.08091125]
[1730494053564,0.20903445,69372.0,69365.0,0.00451125]
[1730494053772,0.20903445,69372.0,69364.0,0.220566]
[1730494053976,0.20903445,69372.0,69366.0,0.0764]
[1730494054380,0.288294,69374.0,69368.0,0.0912]
[1730494054381,0.144146,69374.0,69368.0,0.0912]
[1730494054616,0.28260325,69373.0,69369.0,0.0764]
[1730494055044,0.022,69372.0,69369.0,0.0764]
[1730494055238,0.144153,69371.0,69369.0,0.0764]
[1730494055690,0.13845525,69373.0,69369.0,0.0764]
[1730494055864,0.144152,69372.0,69369.0,0.0764]
[1730494056211,0.158152,69372.0,69369.0,0.0764]
[1730494056419,0.144152,69371.0,69369.0,0.0764]
[1730494056630,0.158152,69371.0,69369.0,0.0764]
[1730494056829,0.014,69371.0,69369.0,0.0764]
[1730494057658,0.158152,69371.0,69369.0,0.0764]
[1730494058067,0.144152,69371.0,69369.0,0.0764]
[1730494058467,0.158152,69371.0,69370.0,0.004511]
[1730494058666,0.158152,69371.0,69370.0,0.00451099]
[1730494059327,0.25947103,69371.0,69370.0,0.00451099]
[1730494060363,0.158152,69371.0,69370.0,0.00451099]
[1730494060789,0.014,69371.0,69370.0,0.00451099]
[1730494061012,0.014,69371.0,69369.0,0.0764]
[1730494061208,0.014,69371.0,69370.0,0.00451078]
[1730494061412,0.028,69371.0,69370.0,0.01172805]
[1730494061849,0.014,69371.0,69370.0,0.01172805]
[1730494062190,0.028,69371.0,69370.0,0.01172805]
[1730494062603,0.014,69371.0,69370.0,0.01172805]
[1730494063020,0.028,69371.0,69370.0,0.01172805]
[1730494063435,0.028,69371.0,69370.0,0.00451078]
[1730494066412,0.029642,69371.0,69370.0,0.00451078]
[1730494066623,0.0745893,69371.0,69370.0,0.00451078]
[1730494068529,0.029642,69371.0,69370.0,0.00451078]
[1730494070707,0.54489566,69361.0,69360.0,0.000822]
[1730494071663,0.32757782,69361.0,69360.0,0.000822]
[1730494072067,0.34157782,69361.0,69360.0,0.000822]
[1730494072273,0.47587988,69361.0,69360.0,0.000822]
[1730494072779,0.48987988,69361.0,69360.0,0.000822]
[1730494073425,0.47587988,69361.0,69360.0,0.000822]
[1730494073622,0.48987988,69361.0,69360.0,0.000822]
[1730494074329,0.47587988,69361.0,69360.0,0.000822]
[1730494074946,0.48987988,69361.0,69360.0,0.000822]
[1730494075167,0.47587988,69361.0,69360.0,0.000822]
[1730494075380,0.59861298,69361.0,69360.0,0.000822]
[1730494075816,0.48987988,69361.0,69360.0,0.000822]
[1730494076178,0.35557782,69361.0,69360.0,0.000822]
[1730494077396,0.39866068,69361.0,69360.0,0.000822]
[1730494077899,0.39866068,69361.0,69360.0,0.077222]
[1730494077900,0.35557782,69361.0,69360.0,0.077222]
[1730494078335,0.48194489,69361.0,69360.0,0.077222]
[1730494079561,0.43699532,69361.0,69360.0,0.077222]
[1730494081651,0.48196808,69361.0,69360.0,0.000822]
[1730494081874,0.58196808,69361.0,69360.0,0.000822]
[1730494082082,0.7396055,69361.0,69360.0,0.000822]
[1730494082549,0.84750436,69361.0,69360.0,0.000822]
[1730494082778,0.7396055,69361.0,69360.0,0.000822]
[1730494083029,0.7256055,69361.0,69360.0,0.000822]
[1730494083236,0.70715012,69361.0,69360.0,0.000822]
[1730494083444,0.72115012,69361.0,69360.0,0.000822]
[1730494083650,0.59923843,69361.0,69360.0,0.000822]
[1730494084493,0.70715012,69361.0,69360.0,0.000822]
[1730494084707,0.72115012,69361.0,69360.0,0.000822]
[1730494084931,0.70715012,69361.0,69360.0,0.000822]
[1730494085145,0.59923843,69361.0,69360.0,0.000822]
[1730494085569,0.70715012,69361.0,69360.0,0.000822]
[1730494086205,0.59923843,69361.0,69360.0,0.000822]
[1730494086411,0.61323843,69361.0,69360.0,0.000822]
[1730494086617,0.75171573,69361.0,69360.0,0.000822]
[1730494087732,0.61323843,69361.0,69360.0,0.000822]
[1730494087968,0.61400113,69361.0,69360.0,0.000822]
[1730494088183,0.7003197,69361.0,69360.0,0.000822]
[1730494088436,0.61400113,69361.0,69360.0,0.000822]
[1730494088849,0.45560101,69361.0,69360.0,0.000822]
[1730494089259,0.59407831,69361.0,69360.0,0.000822]
[1730494089489,0.75294099,69361.0,69360.0,0.000822]
[1730494089699,0.59407831,69361.0,69360.0,0.000822]
[1730494090815,0.52032829,69361.0,69360.0,0.000822]
[1730494091249,0.31062825,69361.0,69360.0,0.000822]
[1730494097163,0.16645525,69361.0,69360.0,0.094422]
[1730494097782,0.028,69361.0,69360.0,0.176422]
[1730494097992,0.014,69361.0,69360.0,0.176422]
[1730494098402,0.144173,69361.0,69360.0,0.176422]
[1730494098627,0.31104555,69361.0,69360.0,0.082822]
[1730494098837,0.31104555,69361.0,69360.0,0.000822]
[1730494099236,0.59031035,69361.0,69360.0,0.000822]
[1730494099454,0.66903098,69361.0,69360.0,0.000822]
[1730494099658,0.66903279,69361.0,69360.0,0.000822]
[1730494099924,0.64103279,69361.0,69360.0,0.000822]
[1730494100292,0.65603279,69361.0,69360.0,0.000822]
[1730494100488,0.59031035,69361.0,69360.0,0.000822]
[1730494100704,0.57631035,69361.0,69360.0,0.000822]
[1730494100902,0.65503252,69361.0,69360.0,0.000822]
[1730494101300,0.44159099,69361.0,69360.0,0.000822]
[1730494101517,0.52031319,69361.0,69360.0,0.000822]
[1730494102132,0.52031377,69361.0,69360.0,0.000822]
[1730494102565,0.44159099,69361.0,69360.0,0.000822]
[1730494102765,0.52031377,69361.0,69360.0,0.000822]
[1730494103703,0.59406829,69361.0,69360.0,0.000822]
[1730494103897,0.65879107,69361.0,69360.0,0.000822]
[1730494104450,0.65879522,69361.0,69360.0,0.000822]
[1730494105757,0.52031792,69361.0,69360.0,0.000822]
[1730494106325,0.61465343,69361.0,69360.0,0.000822]
[1730494107159,0.700956,69361.0,69360.0,0.000822]
[1730494108227,0.61465343,69361.0,69360.0,0.000822]
[1730494109094,0.61447892,69361.0,69360.0,0.000822]
[1730494109309,0.88725828,69361.0,69360.0,0.000822]
[1730494110401,0.95612047,69361.0,69360.0,0.000822]
[1730494110624,0.98565828,69361.0,69360.0,0.000822]
[1730494112990,0.85135622,69361.0,69360.0,0.000822]
[1730494114845,0.99705872,69361.0,69360.0,0.000822]
[1730494115077,0.85135622,69361.0,69360.0,0.000822]
[1730494116781,0.99720506,69361.0,69360.0,0.000822]
[1730494117190,0.85135622,69361.0,69360.0,0.000822]
[1730494117337,0.9971864,69361.0,69360.0,0.000822]
[1730494118129,0.9966262,69361.0,69360.0,0.000822]